[Event "January 2 Late 2024"]
[Site "https://www.chess.com"]
[Date "2024.01.02"]
[Round "10"]
[White "Janaszak, Dawid"]
[Black "Krzyzanowski, Marcin"]
[Result "0-1"]
[Board "29"]
[TimeControl "180+1"]
[WhiteFideId "1119206"]
[BlackFideId "1132199"]
[WhiteElo "2638"]
[BlackElo "2786"]
[WhiteTeam "POL"]
[BlackTeam "POL"]
[WhiteClock "0:00:05"]
[BlackClock "0:00:17"]

1. e4 {[%clk 0:03:00]}  c6 {[%clk 0:03:00]} 2. d4 {[%clk 0:03:00]}  d5 {[%clk 0:03:00]} 3. exd5 {[%clk 0:03:01]}  cxd5 {[%clk 0:03:01]} 4. Bd3 {[%clk 0:03:01]}  Nc6 {[%clk 0:03:01]} 5. c3 {[%clk 0:03:01]}  Qc7 {[%clk 0:03:01]} 6. Ne2 {[%clk 0:03:01]}  Bg4 {[%clk 0:02:58]} 7. O-O {[%clk 0:03:01]}  e6 {[%clk 0:02:52]} 8. Qe1 {[%clk 0:03:00]}  Nf6 {[%clk 0:02:38]} 9. f3 {[%clk 0:02:51]}  Bh5 {[%clk 0:02:38]} 10. Bg5 {[%clk 0:02:38]}  Bg6 {[%clk 0:02:31]} 11. Nc1 {[%clk 0:02:23]}  Bd6 {[%clk 0:02:31]} 12. Qh4 {[%clk 0:02:22]}  O-O-O {[%clk 0:02:28]} 13. Na3 {[%clk 0:02:15]}  a6 {[%clk 0:02:28]} 14. b4 {[%clk 0:02:12]}  e5 {[%clk 0:02:24]} 15. Nc2 {[%clk 0:01:54]}  Kb8 {[%clk 0:02:20]} 16. Rb1 {[%clk 0:01:49]}  e4 {[%clk 0:02:11]} 17. fxe4 {[%clk 0:01:46]}  dxe4 {[%clk 0:02:11]} 18. Be2 {[%clk 0:01:39]}  e3 {[%clk 0:02:10]} 19. Nd3 {[%clk 0:01:36]}  Rhe8 {[%clk 0:02:03]} 20. b5 {[%clk 0:01:33]}  axb5 {[%clk 0:01:57]} 21. Rxb5 {[%clk 0:01:32]}  Re4 {[%clk 0:01:25]} 22. Qh3 {[%clk 0:01:29]}  h6 {[%clk 0:00:50]} 23. Bxf6 {[%clk 0:01:24]}  gxf6 {[%clk 0:00:51]} 24. Rfb1 {[%clk 0:01:25]}  Na5 {[%clk 0:00:49]} 25. Nc5 {[%clk 0:00:55]}  Bxc5 {[%clk 0:00:48]} 26. Rxc5 {[%clk 0:00:55]}  Qf4 {[%clk 0:00:35]} 27. Qf3 {[%clk 0:00:36]}  Qxf3 {[%clk 0:00:26]} 28. gxf3 {[%clk 0:00:37]}  Re7 {[%clk 0:00:27]} 29. Rxa5 {[%clk 0:00:32]}  Bxc2 {[%clk 0:00:26]} 30. Rb2 {[%clk 0:00:30]}  Rg8+ {[%clk 0:00:26]} 31. Kf1 {[%clk 0:00:29]}  Bh7 {[%clk 0:00:21]} 32. d5 {[%clk 0:00:23]}  Bf5 {[%clk 0:00:17]} 33. Ke1 {[%clk 0:00:17]}  Rg1+ {[%clk 0:00:16]} 34. Bf1 {[%clk 0:00:05]}  Bh3 {[%clk 0:00:17]} 0-1

[Event "January 2 Late 2024"]
[Site "https://www.chess.com"]
[Date "2024.01.02"]
[Round "10"]
[White "Coca Cubillos, Jesus Alberto"]
[Black "Song, Ethan"]
[Result "0-1"]
[Board "31"]
[TimeControl "180+1"]
[WhiteFideId "4462912"]
[BlackFideId "62900412"]
[WhiteElo "2625"]
[BlackElo "2774"]
[WhiteTeam "COL"]
[BlackTeam "CAN"]
[WhiteClock "0:01:10"]
[BlackClock "0:01:46"]

1. f4 {[%clk 0:02:51]}  d5 {[%clk 0:02:51]} 2. Nf3 {[%clk 0:02:34]}  Nf6 {[%clk 0:02:50]} 3. e3 {[%clk 0:02:34]}  g6 {[%clk 0:02:46]} 4. d4 {[%clk 0:02:34]}  Bg7 {[%clk 0:02:47]} 5. Bd3 {[%clk 0:02:33]}  O-O {[%clk 0:02:47]} 6. c3 {[%clk 0:02:34]}  b6 {[%clk 0:02:47]} 7. O-O {[%clk 0:02:34]}  c5 {[%clk 0:02:47]} 8. Nbd2 {[%clk 0:02:34]}  Bb7 {[%clk 0:02:47]} 9. Qe2 {[%clk 0:02:34]}  Ne4 {[%clk 0:02:47]} 10. Ne5 {[%clk 0:02:34]}  f6 {[%clk 0:02:47]} 11. Ng4 {[%clk 0:02:34]}  Nd7 {[%clk 0:02:44]} 12. Qf3 {[%clk 0:02:33]}  Nxd2 {[%clk 0:02:43]} 13. Bxd2 {[%clk 0:02:11]}  e5 {[%clk 0:02:41]} 14. fxe5 {[%clk 0:02:04]}  fxe5 {[%clk 0:02:39]} 15. Qh3 {[%clk 0:02:03]}  e4 {[%clk 0:02:34]} 16. Bb5 {[%clk 0:02:03]}  Nf6 {[%clk 0:02:30]} 17. Ne5 {[%clk 0:01:58]}  Qd6 {[%clk 0:02:23]} 18. Rf2 {[%clk 0:01:48]}  a6 {[%clk 0:02:22]} 19. Be2 {[%clk 0:01:48]}  Bc8 {[%clk 0:02:20]} 20. Qh4 {[%clk 0:01:46]}  Nd7 {[%clk 0:02:11]} 21. Rxf8+ {[%clk 0:01:44]}  Nxf8 {[%clk 0:02:12]} 22. Rf1 {[%clk 0:01:42]}  Bxe5 {[%clk 0:02:06]} 23. dxe5 {[%clk 0:01:42]}  Qxe5 {[%clk 0:02:06]} 24. c4 {[%clk 0:01:42]}  d4 {[%clk 0:02:05]} 25. exd4 {[%clk 0:01:40]}  Qxd4+ {[%clk 0:01:56]} 26. Kh1 {[%clk 0:01:40]}  Qxd2 {[%clk 0:01:51]} 27. Qe7 {[%clk 0:01:37]}  Bf5 {[%clk 0:01:48]} 28. Bg4 {[%clk 0:01:10]}  Qd8 {[%clk 0:01:46]} 0-1

[Event "January 2 Late 2024"]
[Site "https://www.chess.com"]
[Date "2024.01.02"]
[Round "10"]
[White "Roberson, Peter T"]
[Black "Lie, Kjetil A."]
[Result "0-1"]
[Board "32"]
[TimeControl "180+1"]
[WhiteFideId "412384"]
[BlackFideId "1501984"]
[WhiteElo "2597"]
[BlackElo "2759"]
[WhiteTeam "ENG"]
[BlackTeam "NOR"]
[WhiteClock "0:01:00"]
[BlackClock "0:01:27"]

1. e4 {[%clk 0:02:55]}  c5 {[%clk 0:03:00]} 2. b3 {[%clk 0:02:55]}  b6 {[%clk 0:02:56]} 3. Bb2 {[%clk 0:02:54]}  Bb7 {[%clk 0:02:56]} 4. Nc3 {[%clk 0:02:54]}  Nc6 {[%clk 0:02:54]} 5. f4 {[%clk 0:02:48]}  e6 {[%clk 0:02:49]} 6. Nf3 {[%clk 0:02:47]}  d5 {[%clk 0:02:48]} 7. Bb5 {[%clk 0:02:45]}  d4 {[%clk 0:02:42]} 8. Ne2 {[%clk 0:02:45]}  Ne7 {[%clk 0:02:37]} 9. d3 {[%clk 0:02:43]}  a6 {[%clk 0:02:35]} 10. Bxc6+ {[%clk 0:02:43]}  Nxc6 {[%clk 0:02:36]} 11. g4 {[%clk 0:02:44]}  Be7 {[%clk 0:02:35]} 12. Ng3 {[%clk 0:02:43]}  Qc7 {[%clk 0:02:34]} 13. f5 {[%clk 0:02:40]}  Bd6 {[%clk 0:02:31]} 14. Rg1 {[%clk 0:02:16]}  O-O-O {[%clk 0:02:26]} 15. Qe2 {[%clk 0:02:15]}  Bf4 {[%clk 0:02:23]} 16. Bc1 {[%clk 0:02:14]}  exf5 {[%clk 0:02:05]} 17. gxf5 {[%clk 0:02:08]}  Bxc1 {[%clk 0:01:59]} 18. Rxc1 {[%clk 0:02:07]}  g6 {[%clk 0:01:59]} 19. Kf2 {[%clk 0:01:52]}  h5 {[%clk 0:01:55]} 20. h4 {[%clk 0:01:42]}  Rde8 {[%clk 0:01:45]} 21. Kg2 {[%clk 0:01:25]}  gxf5 {[%clk 0:01:33]} 22. Nxf5 {[%clk 0:01:24]}  Qf4 {[%clk 0:01:32]} 23. Kh3 {[%clk 0:01:14]}  Qxf5+ {[%clk 0:01:31]} 24. Kh2 {[%clk 0:01:06]}  Qf4+ {[%clk 0:01:30]} 25. Kh3 {[%clk 0:01:05]}  Rhg8 {[%clk 0:01:30]} 26. Rg5 {[%clk 0:01:00]}  Qxc1 {[%clk 0:01:27]} 0-1

[Event "January 2 Late 2024"]
[Site "https://www.chess.com"]
[Date "2024.01.02"]
[Round "10"]
[White "Womacka, Mathias"]
[Black "Tristan, Leonardo"]
[Result "1-0"]
[Board "33"]
[TimeControl "180+1"]
[WhiteFideId "4611390"]
[BlackFideId "113816"]
[WhiteElo "2573"]
[BlackElo "2755"]
[WhiteTeam "GER"]
[BlackTeam "ARG"]
[WhiteClock "0:01:18"]
[BlackClock "0:00:22"]

1. e4 {[%clk 0:03:00]}  d5 {[%clk 0:03:00]} 2. exd5 {[%clk 0:02:59]}  Qxd5 {[%clk 0:03:01]} 3. Nc3 {[%clk 0:02:58]}  Qa5 {[%clk 0:03:01]} 4. d4 {[%clk 0:02:58]}  Nf6 {[%clk 0:03:01]} 5. Nf3 {[%clk 0:02:58]}  Bf5 {[%clk 0:03:01]} 6. Ne5 {[%clk 0:02:57]}  c6 {[%clk 0:03:01]} 7. Bf4 {[%clk 0:02:54]}  Nbd7 {[%clk 0:02:58]} 8. Nc4 {[%clk 0:02:55]}  Qd8 {[%clk 0:02:58]} 9. Ne3 {[%clk 0:02:55]}  Be6 {[%clk 0:02:58]} 10. Be2 {[%clk 0:02:54]}  Nb6 {[%clk 0:02:52]} 11. O-O {[%clk 0:02:51]}  g6 {[%clk 0:02:46]} 12. a4 {[%clk 0:02:49]}  a5 {[%clk 0:02:42]} 13. Qd2 {[%clk 0:02:46]}  Bg7 {[%clk 0:02:41]} 14. Rad1 {[%clk 0:02:42]}  O-O {[%clk 0:02:41]} 15. Rfe1 {[%clk 0:02:41]}  Re8 {[%clk 0:02:39]} 16. Be5 {[%clk 0:02:37]}  Nbd7 {[%clk 0:02:37]} 17. Bg3 {[%clk 0:02:35]}  Nb6 {[%clk 0:02:37]} 18. Be5 {[%clk 0:02:29]}  Nbd7 {[%clk 0:02:37]} 19. Bg3 {[%clk 0:02:27]}  Bh6 {[%clk 0:02:17]} 20. Qd3 {[%clk 0:02:18]}  Nb6 {[%clk 0:02:10]} 21. Bf3 {[%clk 0:02:09]}  Nfd5 {[%clk 0:02:04]} 22. Nexd5 {[%clk 0:02:02]}  Bxd5 {[%clk 0:01:37]} 23. Nxd5 {[%clk 0:02:00]}  cxd5 {[%clk 0:01:37]} 24. Qb5 {[%clk 0:01:55]}  e6 {[%clk 0:01:33]} 25. Rd3 {[%clk 0:01:49]}  Bf8 {[%clk 0:00:57]} 26. Rb3 {[%clk 0:01:46]}  Ra6 {[%clk 0:00:57]} 27. Bc7 {[%clk 0:01:34]}  Qxc7 {[%clk 0:00:51]} 28. Qxe8 {[%clk 0:01:34]}  Qxc2 {[%clk 0:00:47]} 29. Rc3 {[%clk 0:01:28]}  Qxb2 {[%clk 0:00:39]} 30. Rc7 {[%clk 0:01:28]}  Kg7 {[%clk 0:00:24]} 31. Qxf7+ {[%clk 0:01:24]}  Kh6 {[%clk 0:00:24]} 32. Qxf8+ {[%clk 0:01:24]}  Kg5 {[%clk 0:00:24]} 33. h4+ {[%clk 0:01:20]}  Kxh4 {[%clk 0:00:22]} 34. Qh6# {[%clk 0:01:18]} 1-0

[Event "January 2 Late 2024"]
[Site "https://www.chess.com"]
[Date "2024.01.02"]
[Round "10"]
[White "Bardyk, Artem"]
[Black "Ljukin, Sergei"]
[Result "1-0"]
[Board "35"]
[TimeControl "180+1"]
[WhiteFideId "34349979"]
[BlackFideId "14102200"]
[WhiteElo "2730"]
[BlackElo "2548"]
[WhiteTeam "RUS"]
[BlackTeam "UKR"]
[WhiteClock "0:01:21"]
[BlackClock "0:00:00"]

1. e4 {[%clk 0:02:58]}  e6 {[%clk 0:03:00]} 2. d4 {[%clk 0:02:58]}  d5 {[%clk 0:03:00]} 3. Nc3 {[%clk 0:02:56]}  Bb4 {[%clk 0:03:00]} 4. Ne2 {[%clk 0:02:56]}  Nc6 {[%clk 0:02:59]} 5. a3 {[%clk 0:02:56]}  Ba5 {[%clk 0:03:00]} 6. b4 {[%clk 0:02:56]}  Bb6 {[%clk 0:03:00]} 7. Bb2 {[%clk 0:02:57]}  Nge7 {[%clk 0:02:47]} 8. g3 {[%clk 0:02:55]}  e5 {[%clk 0:02:21]} 9. dxe5 {[%clk 0:02:53]}  d4 {[%clk 0:02:19]} 10. Na4 {[%clk 0:02:50]}  Nxe5 {[%clk 0:02:16]} 11. Bg2 {[%clk 0:02:37]}  Bg4 {[%clk 0:02:15]} 12. Nxb6 {[%clk 0:02:22]}  axb6 {[%clk 0:02:11]} 13. Qxd4 {[%clk 0:02:19]}  Qxd4 {[%clk 0:02:10]} 14. Nxd4 {[%clk 0:02:13]}  O-O-O {[%clk 0:02:00]} 15. f3 {[%clk 0:02:05]}  Nc4 {[%clk 0:01:53]} 16. Bc3 {[%clk 0:02:00]}  Bd7 {[%clk 0:01:12]} 17. Kf2 {[%clk 0:01:55]}  f6 {[%clk 0:00:58]} 18. Rhd1 {[%clk 0:01:53]}  Nc6 {[%clk 0:00:44]} 19. Nxc6 {[%clk 0:01:47]}  Bxc6 {[%clk 0:00:43]} 20. Bh3+ {[%clk 0:01:48]}  Kb8 {[%clk 0:00:43]} 21. Rxd8+ {[%clk 0:01:40]}  Rxd8 {[%clk 0:00:42]} 22. Be6 {[%clk 0:01:41]}  Ne5 {[%clk 0:00:17]} 23. Bxe5 {[%clk 0:01:34]}  fxe5 {[%clk 0:00:17]} 24. Ke3 {[%clk 0:01:35]}  Ba4 {[%clk 0:00:16]} 25. Bb3 {[%clk 0:01:26]}  Bxb3 {[%clk 0:00:13]} 26. cxb3 {[%clk 0:01:27]}  c6 {[%clk 0:00:11]} 27. f4 {[%clk 0:01:27]}  exf4+ {[%clk 0:00:08]} 28. gxf4 {[%clk 0:01:28]}  Kc7 {[%clk 0:00:08]} 29. Rg1 {[%clk 0:01:23]}  g6 {[%clk 0:00:08]} 30. f5 {[%clk 0:01:23]}  gxf5 {[%clk 0:00:08]} 31. exf5 {[%clk 0:01:24]}  Rd7 {[%clk 0:00:08]} 32. Ke4 {[%clk 0:01:22]}  Rd2 {[%clk 0:00:00]} 33. f6 {[%clk 0:01:21]} 1-0

[Event "January 2 Late 2024"]
[Site "https://www.chess.com"]
[Date "2024.01.02"]
[Round "10"]
[White "Ambartsumova, Karina"]
[Black "Bachmann, Axel"]
[Result "0-1"]
[Board "38"]
[TimeControl "180+1"]
[WhiteFideId "4166299"]
[BlackFideId "3700488"]
[WhiteElo "2620"]
[BlackElo "2809"]
[WhiteTeam "RUS"]
[BlackTeam "PAR"]
[WhiteClock "0:00:06"]
[BlackClock "0:00:43"]

1. d4 {[%clk 0:03:00]}  Nf6 {[%clk 0:02:58]} 2. c4 {[%clk 0:03:00]}  c5 {[%clk 0:02:59]} 3. d5 {[%clk 0:02:59]}  e6 {[%clk 0:03:00]} 4. Nc3 {[%clk 0:02:58]}  exd5 {[%clk 0:03:00]} 5. cxd5 {[%clk 0:02:59]}  d6 {[%clk 0:03:01]} 6. Nf3 {[%clk 0:03:00]}  g6 {[%clk 0:03:02]} 7. e4 {[%clk 0:03:00]}  Bg7 {[%clk 0:03:02]} 8. Be2 {[%clk 0:03:00]}  O-O {[%clk 0:03:02]} 9. O-O {[%clk 0:03:00]}  Bg4 {[%clk 0:03:02]} 10. Bf4 {[%clk 0:02:56]}  Bxf3 {[%clk 0:03:01]} 11. Bxf3 {[%clk 0:02:56]}  a6 {[%clk 0:03:01]} 12. a4 {[%clk 0:02:55]}  Qe7 {[%clk 0:03:02]} 13. Qb3 {[%clk 0:02:36]}  Nbd7 {[%clk 0:02:59]} 14. a5 {[%clk 0:02:22]}  Rab8 {[%clk 0:02:51]} 15. Rfe1 {[%clk 0:02:17]}  b5 {[%clk 0:02:48]} 16. axb6 {[%clk 0:02:17]}  Rxb6 {[%clk 0:02:48]} 17. Qc2 {[%clk 0:02:04]}  Ne5 {[%clk 0:02:48]} 18. Be2 {[%clk 0:02:02]}  Rfb8 {[%clk 0:02:48]} 19. Ra2 {[%clk 0:01:58]}  Qb7 {[%clk 0:02:27]} 20. Bxe5 {[%clk 0:01:52]}  dxe5 {[%clk 0:02:28]} 21. Na4 {[%clk 0:01:50]}  Rb4 {[%clk 0:02:26]} 22. Nxc5 {[%clk 0:01:42]}  Qc7 {[%clk 0:02:26]} 23. Rc1 {[%clk 0:01:38]}  R8b6 {[%clk 0:02:13]} 24. Nxa6 {[%clk 0:01:22]}  Qxc2 {[%clk 0:02:12]} 25. Rxc2 {[%clk 0:01:23]}  Rxe4 {[%clk 0:02:12]} 26. Nc7 {[%clk 0:01:00]}  Bf8 {[%clk 0:02:07]} 27. Ra8 {[%clk 0:00:56]}  Kg7 {[%clk 0:02:06]} 28. f3 {[%clk 0:00:43]}  Rd4 {[%clk 0:02:02]} 29. Bc4 {[%clk 0:00:34]}  e4 {[%clk 0:01:53]} 30. Ne8+ {[%clk 0:00:30]}  Nxe8 {[%clk 0:01:52]} 31. Rxe8 {[%clk 0:00:31]}  Bc5 {[%clk 0:01:43]} 32. Kf1 {[%clk 0:00:30]}  Rf6 {[%clk 0:01:31]} 33. Be2 {[%clk 0:00:23]}  Bd6 {[%clk 0:01:29]} 34. h3 {[%clk 0:00:14]}  Bg3 {[%clk 0:01:23]} 35. Rc4 {[%clk 0:00:06]}  Rd2 {[%clk 0:01:16]} 36. Rexe4 {[%clk 0:00:06]}  Rxb2 {[%clk 0:01:11]} 37. Rc1 {[%clk 0:00:06]}  Rd6 {[%clk 0:01:08]} 38. Rg4 {[%clk 0:00:07]}  Be5 {[%clk 0:01:07]} 39. Re4 {[%clk 0:00:05]}  Rxd5 {[%clk 0:01:01]} 40. Bc4 {[%clk 0:00:05]}  Rc5 {[%clk 0:01:00]} 41. Re2 {[%clk 0:00:04]}  Rb4 {[%clk 0:00:57]} 42. Rcc2 {[%clk 0:00:03]}  Bg3 {[%clk 0:00:56]} 43. Re4 {[%clk 0:00:01]}  f5 {[%clk 0:00:55]} 44. Rd4 {[%clk 0:00:01]}  Kf6 {[%clk 0:00:51]} 45. Ke2 {[%clk 0:00:01]}  Be5 {[%clk 0:00:49]} 46. Kd3 {[%clk 0:00:01]}  Bxd4 {[%clk 0:00:49]} 47. Kxd4 {[%clk 0:00:02]}  Rc7 {[%clk 0:00:49]} 48. f4 {[%clk 0:00:03]}  h6 {[%clk 0:00:49]} 49. g3 {[%clk 0:00:03]}  g5 {[%clk 0:00:49]} 50. Kd3 {[%clk 0:00:03]}  Ra4 {[%clk 0:00:46]} 51. Kd4 {[%clk 0:00:03]}  h5 {[%clk 0:00:43]} 52. fxg5+ {[%clk 0:00:03]}  Kxg5 {[%clk 0:00:43]} 53. Kd5 {[%clk 0:00:03]}  h4 {[%clk 0:00:41]} 54. gxh4+ {[%clk 0:00:04]}  Kxh4 {[%clk 0:00:42]} 55. Kd4 {[%clk 0:00:03]}  f4 {[%clk 0:00:41]} 56. Rc3 {[%clk 0:00:03]}  Raxc4+ {[%clk 0:00:41]} 57. Rxc4 {[%clk 0:00:04]}  Rxc4+ {[%clk 0:00:42]} 58. Kxc4 {[%clk 0:00:05]}  f3 {[%clk 0:00:42]} 59. Kd3 {[%clk 0:00:06]}  Kxh3 {[%clk 0:00:43]} 60. Ke3 {[%clk 0:00:06]}  Kg2 {[%clk 0:00:43]} 0-1

[Event "January 2 Late 2024"]
[Site "https://www.chess.com"]
[Date "2024.01.02"]
[Round "10"]
[White "Klukin, Kirill"]
[Black "Gubajdullin, Alexei"]
[Result "1-0"]
[Board "39"]
[TimeControl "180+1"]
[WhiteFideId "24199273"]
[BlackFideId "4141202"]
[WhiteElo "2807"]
[BlackElo "2613"]
[WhiteTeam "RUS"]
[BlackTeam "RUS"]
[WhiteClock "0:00:04"]
[BlackClock "0:00:00"]

1. d4 {[%clk 0:03:00]}  Nf6 {[%clk 0:02:59]} 2. c4 {[%clk 0:03:01]}  g6 {[%clk 0:02:59]} 3. Nc3 {[%clk 0:03:01]}  Bg7 {[%clk 0:02:59]} 4. Nf3 {[%clk 0:03:02]}  d6 {[%clk 0:03:00]} 5. e3 {[%clk 0:03:02]}  O-O {[%clk 0:03:00]} 6. Be2 {[%clk 0:03:03]}  Nbd7 {[%clk 0:03:00]} 7. O-O {[%clk 0:03:04]}  e5 {[%clk 0:03:00]} 8. Qc2 {[%clk 0:03:05]}  e4 {[%clk 0:03:00]} 9. Nd2 {[%clk 0:03:04]}  c5 {[%clk 0:02:58]} 10. Ndxe4 {[%clk 0:03:00]}  Nxe4 {[%clk 0:02:54]} 11. Nxe4 {[%clk 0:03:01]}  cxd4 {[%clk 0:02:53]} 12. exd4 {[%clk 0:03:02]}  Bxd4 {[%clk 0:02:53]} 13. Bh6 {[%clk 0:02:48]}  Re8 {[%clk 0:02:46]} 14. Nxd6 {[%clk 0:02:30]}  Re6 {[%clk 0:02:37]} 15. Nxc8 {[%clk 0:02:02]}  Qh4 {[%clk 0:02:35]} 16. Qd2 {[%clk 0:01:26]}  Rxc8 {[%clk 0:02:18]} 17. Bf3 {[%clk 0:01:10]}  Ne5 {[%clk 0:02:04]} 18. Bd5 {[%clk 0:01:01]}  Nxc4 {[%clk 0:01:22]} 19. Qf4 {[%clk 0:00:53]}  Qxf4 {[%clk 0:01:11]} 20. Bxf4 {[%clk 0:00:54]}  Rf6 {[%clk 0:01:11]} 21. Bg3 {[%clk 0:00:54]}  Nxb2 {[%clk 0:01:03]} 22. Bxb7 {[%clk 0:00:52]}  Rd8 {[%clk 0:01:03]} 23. Bh4 {[%clk 0:00:46]}  Rb6 {[%clk 0:00:55]} 24. Bxd8 {[%clk 0:00:44]}  Rxb7 {[%clk 0:00:55]} 25. Rab1 {[%clk 0:00:44]}  Rd7 {[%clk 0:00:53]} 26. Bg5 {[%clk 0:00:42]}  Kg7 {[%clk 0:00:47]} 27. Rfe1 {[%clk 0:00:39]}  a5 {[%clk 0:00:43]} 28. Be3 {[%clk 0:00:38]}  Bf6 {[%clk 0:00:42]} 29. Re2 {[%clk 0:00:37]}  Na4 {[%clk 0:00:37]} 30. Rc2 {[%clk 0:00:34]}  Nc3 {[%clk 0:00:32]} 31. Rbc1 {[%clk 0:00:34]}  a4 {[%clk 0:00:31]} 32. g3 {[%clk 0:00:32]}  Nd5 {[%clk 0:00:29]} 33. Rd2 {[%clk 0:00:29]}  a3 {[%clk 0:00:17]} 34. Rcd1 {[%clk 0:00:29]}  Nxe3 {[%clk 0:00:17]} 35. Rxd7 {[%clk 0:00:29]}  Nxd1 {[%clk 0:00:17]} 36. Rxd1 {[%clk 0:00:30]}  h5 {[%clk 0:00:16]} 37. h4 {[%clk 0:00:30]}  Bb2 {[%clk 0:00:16]} 38. Rd6 {[%clk 0:00:30]}  Kf8 {[%clk 0:00:16]} 39. Kf1 {[%clk 0:00:31]}  Ke7 {[%clk 0:00:16]} 40. Rb6 {[%clk 0:00:31]}  Kf8 {[%clk 0:00:15]} 41. Ke2 {[%clk 0:00:32]}  Kg7 {[%clk 0:00:15]} 42. f3 {[%clk 0:00:29]}  Bd4 {[%clk 0:00:13]} 43. Rb5 {[%clk 0:00:28]}  Bb2 {[%clk 0:00:11]} 44. g4 {[%clk 0:00:28]}  hxg4 {[%clk 0:00:09]} 45. fxg4 {[%clk 0:00:29]}  Bf6 {[%clk 0:00:09]} 46. Ra5 {[%clk 0:00:23]}  Bb2 {[%clk 0:00:08]} 47. Kf3 {[%clk 0:00:23]}  Bc1 {[%clk 0:00:07]} 48. Ra6 {[%clk 0:00:23]}  Bb2 {[%clk 0:00:04]} 49. Ke4 {[%clk 0:00:23]}  Bc1 {[%clk 0:00:04]} 50. h5 {[%clk 0:00:18]}  Bb2 {[%clk 0:00:05]} 51. hxg6 {[%clk 0:00:17]}  fxg6 {[%clk 0:00:05]} 52. g5 {[%clk 0:00:18]}  Bc1 {[%clk 0:00:05]} 53. Ra7+ {[%clk 0:00:17]}  Kg8 {[%clk 0:00:05]} 54. Ke5 {[%clk 0:00:15]}  Bb2+ {[%clk 0:00:04]} 55. Ke6 {[%clk 0:00:16]}  Kf8 {[%clk 0:00:04]} 56. Rb7 {[%clk 0:00:13]}  Kg8 {[%clk 0:00:04]} 57. Rb6 {[%clk 0:00:08]}  Kf8 {[%clk 0:00:03]} 58. Rb3 {[%clk 0:00:07]}  Kg8 {[%clk 0:00:03]} 59. Rf3 {[%clk 0:00:08]}  Kg7 {[%clk 0:00:03]} 60. Ke7 {[%clk 0:00:08]}  Kg8 {[%clk 0:00:03]} 61. Ke8 {[%clk 0:00:05]}  Bc1 {[%clk 0:00:03]} 62. Kd7 {[%clk 0:00:04]}  Bb2 {[%clk 0:00:02]} 63. Ke6 {[%clk 0:00:05]}  Kg7 {[%clk 0:00:02]} 64. Kd5 {[%clk 0:00:04]}  Kg8 {[%clk 0:00:02]} 65. Kc4 {[%clk 0:00:04]}  Kg7 {[%clk 0:00:02]} 66. Kb4 {[%clk 0:00:05]}  Bc1 {[%clk 0:00:00]} 67. Rxa3 {[%clk 0:00:04]} 1-0

[Event "January 2 Late 2024"]
[Site "https://www.chess.com"]
[Date "2024.01.02"]
[Round "10"]
[White "Zavgorodniy, Sergiy"]
[Black "Durarbayli, Vasif"]
[Result "1-0"]
[Board "40"]
[TimeControl "180+1"]
[WhiteFideId "14110148"]
[BlackFideId "13402935"]
[WhiteElo "2605"]
[BlackElo "2798"]
[WhiteTeam "UKR"]
[BlackTeam "AZE"]
[WhiteClock "0:00:03"]
[BlackClock "0:00:01"]

1. d4 {[%clk 0:03:00]}  d5 {[%clk 0:02:59]} 2. c4 {[%clk 0:03:01]}  c6 {[%clk 0:02:59]} 3. e3 {[%clk 0:03:01]}  Nf6 {[%clk 0:02:59]} 4. Bd3 {[%clk 0:03:01]}  Bg4 {[%clk 0:02:58]} 5. Qc2 {[%clk 0:03:00]}  e6 {[%clk 0:02:59]} 6. Nd2 {[%clk 0:03:00]}  Be7 {[%clk 0:02:57]} 7. Ngf3 {[%clk 0:03:01]}  Nbd7 {[%clk 0:02:57]} 8. O-O {[%clk 0:03:01]}  O-O {[%clk 0:02:56]} 9. b3 {[%clk 0:03:01]}  c5 {[%clk 0:02:46]} 10. Bb2 {[%clk 0:03:01]}  cxd4 {[%clk 0:02:46]} 11. exd4 {[%clk 0:03:02]}  Qc7 {[%clk 0:02:35]} 12. c5 {[%clk 0:02:57]}  a5 {[%clk 0:02:30]} 13. a3 {[%clk 0:02:57]}  h6 {[%clk 0:02:18]} 14. b4 {[%clk 0:02:57]}  Nh5 {[%clk 0:02:17]} 15. Rfc1 {[%clk 0:02:48]}  Nf4 {[%clk 0:02:16]} 16. Bf1 {[%clk 0:02:47]}  Bf6 {[%clk 0:01:53]} 17. b5 {[%clk 0:02:35]}  Rfc8 {[%clk 0:01:47]} 18. a4 {[%clk 0:02:10]}  e5 {[%clk 0:01:34]} 19. Nxe5 {[%clk 0:02:06]}  Nxe5 {[%clk 0:01:27]} 20. dxe5 {[%clk 0:02:07]}  Bxe5 {[%clk 0:01:28]} 21. Bxe5 {[%clk 0:02:06]}  Qxe5 {[%clk 0:01:27]} 22. Re1 {[%clk 0:02:03]}  Qg5 {[%clk 0:01:18]} 23. Kh1 {[%clk 0:01:49]}  d4 {[%clk 0:01:11]} 24. Qe4 {[%clk 0:01:41]}  Rxc5 {[%clk 0:01:01]} 25. Qxb7 {[%clk 0:01:41]}  Rcc8 {[%clk 0:00:55]} 26. Ne4 {[%clk 0:01:38]}  Qg6 {[%clk 0:00:53]} 27. f3 {[%clk 0:01:29]}  Be6 {[%clk 0:00:44]} 28. Rad1 {[%clk 0:01:26]}  Bd5 {[%clk 0:00:35]} 29. Qd7 {[%clk 0:01:19]}  d3 {[%clk 0:00:34]} 30. g3 {[%clk 0:01:11]}  Rd8 {[%clk 0:00:32]} 31. Qc7 {[%clk 0:01:05]}  Ne6 {[%clk 0:00:25]} 32. Qe5 {[%clk 0:01:05]}  f6 {[%clk 0:00:13]} 33. Qb2 {[%clk 0:00:56]}  Ng5 {[%clk 0:00:10]} 34. Nxg5 {[%clk 0:00:36]}  hxg5 {[%clk 0:00:10]} 35. Rxd3 {[%clk 0:00:32]}  g4 {[%clk 0:00:11]} 36. Rxd5 {[%clk 0:00:28]}  Rxd5 {[%clk 0:00:11]} 37. Bc4 {[%clk 0:00:28]}  Rd8 {[%clk 0:00:09]} 38. Qb3 {[%clk 0:00:24]}  Qf7 {[%clk 0:00:05]} 39. b6 {[%clk 0:00:18]}  gxf3 {[%clk 0:00:04]} 40. b7 {[%clk 0:00:15]}  f2 {[%clk 0:00:04]} 41. Rf1 {[%clk 0:00:14]}  Kh7 {[%clk 0:00:02]} 42. b8=Q {[%clk 0:00:12]}  Rxb8 {[%clk 0:00:01]} 43. Qxb8 {[%clk 0:00:13]}  Qd7 {[%clk 0:00:01]} 44. Qf4 {[%clk 0:00:07]}  Rf5 {[%clk 0:00:01]} 45. Qe4 {[%clk 0:00:06]}  g6 {[%clk 0:00:02]} 46. Kg2 {[%clk 0:00:05]}  Qd2 {[%clk 0:00:02]} 47. Bd3 {[%clk 0:00:04]}  Rg5 {[%clk 0:00:01]} 48. Qe7+ {[%clk 0:00:04]}  Kh6 {[%clk 0:00:01]} 49. Qe4 {[%clk 0:00:04]}  f5 {[%clk 0:00:01]} 50. Qd4 {[%clk 0:00:04]}  Rh5 {[%clk 0:00:01]} 51. Qh8+ {[%clk 0:00:03]}  Kg5 {[%clk 0:00:01]} 52. Qd8+ {[%clk 0:00:04]}  Kh6 {[%clk 0:00:02]} 53. h4 {[%clk 0:00:04]}  f4 {[%clk 0:00:02]} 54. Rxf2 {[%clk 0:00:04]}  f3+ {[%clk 0:00:02]} 55. Kxf3 {[%clk 0:00:04]}  Qc3 {[%clk 0:00:03]} 56. Qd6 {[%clk 0:00:03]}  Qg7 {[%clk 0:00:03]} 57. Kg2 {[%clk 0:00:03]}  Kh7 {[%clk 0:00:03]} 58. Qf4 {[%clk 0:00:03]}  Re5 {[%clk 0:00:04]} 59. Qg4 {[%clk 0:00:03]}  Re3 {[%clk 0:00:04]} 60. h5 {[%clk 0:00:02]}  Rxd3 {[%clk 0:00:04]} 61. hxg6+ {[%clk 0:00:03]}  Qxg6 {[%clk 0:00:05]} 62. Qxg6+ {[%clk 0:00:03]}  Kxg6 {[%clk 0:00:06]} 63. Rf4 {[%clk 0:00:03]}  Rb3 {[%clk 0:00:07]} 64. Kh3 {[%clk 0:00:04]}  Rb4 {[%clk 0:00:07]} 65. Kg4 {[%clk 0:00:04]}  Rb3 {[%clk 0:00:08]} 66. Re4 {[%clk 0:00:03]}  Rb4 {[%clk 0:00:09]} 67. Kf4 {[%clk 0:00:04]}  Rb3 {[%clk 0:00:09]} 68. g4 {[%clk 0:00:04]}  Rb4 {[%clk 0:00:09]} 69. Rxb4 {[%clk 0:00:04]}  axb4 {[%clk 0:00:09]} 70. Ke4 {[%clk 0:00:05]}  Kg5 {[%clk 0:00:10]} 71. a5 {[%clk 0:00:04]}  b3 {[%clk 0:00:11]} 72. Kd3 {[%clk 0:00:04]}  Kxg4 {[%clk 0:00:12]} 73. a6 {[%clk 0:00:04]}  Kf5 {[%clk 0:00:01]} 74. a7 {[%clk 0:00:03]} 1-0